bitfinex/quotes_SOLUSD_20220210
["timestamp","ask_amount","ask_price","bid_price","bid_amount"]
[1644502166163,24.5738,106.75,106.64,57.14643311]
[1644502166462,24.5738,106.75,106.64,45.89643311]
[1644502166463,30.5738,106.75,106.64,45.89643311]
[1644502166662,30.5738,106.75,106.64,45.64643311]
[1644502166663,24.50963706,106.74,106.64,45.64643311]
[1644502167065,30.5738,106.75,106.64,45.64643311]
[1644502167263,24.5738,106.75,106.64,51.64643311]
[1644502167664,24.5738,106.75,106.64,45.64643311]
[1644502168065,30.5738,106.75,106.64,45.89643311]
[1644502168263,24.5738,106.75,106.64,51.89643311]
[1644502168466,24.5738,106.75,106.64,63.14643311]
[1644502168765,0.02569463,106.78,106.64,56.89643311]
[1644502168964,20.48484973,106.79,106.64,56.89643311]
[1644502169166,4.684,106.78,106.64,56.89643311]
[1644502169365,5.45404332,106.77,106.64,56.89643311]
[1644502169567,5.45404332,106.77,106.58,118.6071]
[1644502169568,14.0622,106.74,106.61,11.25]
[1644502169766,4.687,106.73,106.57,1.31916729]
[1644502169967,11.25,106.72,106.56,143.3987]
[1644502170165,11.27569463,106.72,106.56,143.3987]
[1644502170387,11.27569463,106.72,106.57,87.72]
[1644502170688,34.5238551,106.71,106.57,124.94820161]
[1644502170889,34.5238551,106.71,106.59,87.72]
[1644502171088,0.00569463,106.73,106.61,68.0]
[1644502171290,47.6725,106.8,106.62,15.937]
[1644502171291,47.799,106.78,106.62,15.937]
[1644502171487,47.6725,106.8,106.62,13.24964941]
[1644502171488,0.02637785,106.77,106.62,13.24964941]
[1644502171691,0.02637785,106.78,106.63,20.74284941]
[1644502171887,14.08037785,106.79,106.64,11.25]
[1644502172091,26.56359246,106.78,106.65,42.5727048]
[1644502172289,26.56359246,106.78,106.65,48.8227048]
[1644502172691,46.61979246,106.78,106.65,62.8776048]
[1644502173292,46.61979246,106.78,106.65,42.8227048]
[1644502173693,20.0562,106.78,106.65,42.8227048]
[1644502173894,0.02637785,106.79,106.66,87.72]
[1644502174093,0.02637785,106.81,106.66,100.97037483]
[1644502174294,0.02637785,106.82,106.67,4.684]
[1644502174493,6.02637785,106.83,106.68,11.25]
[1644502174697,46.8409,106.83,106.68,55.46807751]
[1644502174894,4.77077411,106.81,106.68,44.21807751]
[1644502175093,30.21281894,106.79,106.68,44.21807751]
[1644502175594,11.25,106.82,106.68,44.21807751]
[1644502175793,11.25,106.82,106.68,69.05567751]
[1644502176193,4.70937785,106.83,106.68,75.05567751]
[1644502176395,14.0516,106.81,106.68,75.05567751]
[1644502176694,0.02637785,106.83,106.69,15.934]
[1644502176894,0.02637785,106.84,106.71,87.72]
[1644502177095,0.02637785,106.85,106.73,101.7651]
[1644502177296,24.59467785,106.86,106.74,11.25]
[1644502177498,24.5683,106.86,106.74,11.25]
[1644502177694,24.5683,106.86,106.74,17.5]
[1644502177897,24.5683,106.86,106.74,11.5]
[1644502178096,30.84611433,106.85,106.75,36.68898967]
[1644502178296,14.0471,106.84,106.75,36.68898967]
[1644502178494,4.13747872,106.83,106.75,36.68898967]
[1644502178696,4.13747872,106.83,106.72,11.25]
[1644502178997,6.36870026,106.83,106.67,114.4197]
[1644502179195,46.864,106.78,106.64,11.25]
[1644502179395,46.864,106.78,106.62,37.4161]
[1644502179595,0.02637785,106.78,106.62,48.6661]
[1644502179798,0.02637785,106.79,106.63,48.24241217]
[1644502179994,0.02637785,106.79,106.63,147.21241217]
[1644502179995,0.02637785,106.78,106.63,147.21241217]
[1644502180194,0.02637785,106.79,106.63,147.21241217]
[1644502180398,46.8502,106.81,106.64,14.0564]
[1644502180595,14.08037785,106.79,106.65,11.25]
[1644502180795,27.53522154,106.79,106.65,6.0]
[1644502180996,25.304,106.79,106.66,48.48681519]
[1644502181196,0.02637785,106.82,106.67,87.72]
[1644502181396,0.02637785,106.83,106.71,14.0471]
[1644502181696,20.07267785,106.85,106.72,4.682]
[1644502181895,24.2283,106.85,106.71,11.25]
[1644502182096,24.2283,106.85,106.72,35.13044589]
[1644502182097,1.63306929,106.84,106.72,35.13044589]
[1644502182300,19.5463,106.85,106.73,2.00028684]
[1644502182500,6.91322154,106.84,106.72,35.13044589]
[1644502182700,14.0522,106.81,106.72,35.13044589]
[1644502183901,14.0522,106.81,106.67,11.25]
[1644502184401,16.28342154,106.81,106.64,11.25]
[1644502184604,15.96037785,106.8,106.64,11.25]
[1644502184802,14.0579,106.76,106.64,17.25]
[1644502185001,45.22303801,106.76,106.65,48.01083068]
[1644502185402,45.22303801,106.76,106.65,54.01083068]
[1644502186203,14.0579,106.76,106.65,54.01083068]
[1644502186402,0.02637785,106.8,106.65,65.26083068]
[1644502186603,0.02637785,106.81,106.66,4.684]
[1644502186812,0.02637785,106.82,106.67,11.25]
[1644502187005,22.55367785,106.83,106.68,4.684]
[1644502187205,30.4597049,106.82,106.68,58.98627025]
[1644502187408,30.4597049,106.82,106.68,59.23627025]
[1644502187805,22.55367785,106.83,106.68,79.28697025]
[1644502188007,0.02637785,106.84,106.68,79.28697025]
[1644502188209,0.02637785,106.85,106.68,79.28697025]
[1644502188808,47.98832384,106.85,106.68,79.28697025]
[1644502189113,52.67132384,106.85,106.68,73.28697025]
[1644502189311,52.67132384,106.85,106.68,79.28697025]
[1644502189610,11.25,106.84,106.68,78.28697025]
[1644502189809,14.0496,106.82,106.68,78.28697025]
[1644502190012,28.50446602,106.81,106.68,78.28697025]
[1644502191009,42.55536602,106.81,106.68,78.28697025]
[1644502191208,42.55536602,106.81,106.68,82.97097025]
[1644502191409,42.55536602,106.81,106.7,40.28267394]
[1644502191808,42.55536602,106.81,106.7,40.53267394]
[1644502192010,14.0509,106.81,106.71,87.72]
[1644502192208,14.0485,106.83,106.71,87.72]
[1644502192409,14.0485,106.83,106.71,87.97]
[1644502192611,94.86087785,106.86,106.71,109.902]
[1644502192808,24.5683,106.86,106.71,123.9495]
[1644502193008,29.82989535,106.85,106.72,35.91768177]
[1644502193409,29.82989535,106.85,106.72,36.16768177]
[1644502193809,43.37559535,106.85,106.72,36.16768177]
[1644502194210,43.37559535,106.85,106.72,123.63768177]
[1644502194511,42.87559535,106.85,106.72,123.63768177]
[1644502194912,42.87559535,106.85,106.72,134.88768177]
[1644502195112,42.37559535,106.85,106.72,134.88768177]
[1644502195711,41.87559535,106.85,106.72,134.88768177]
[1644502196111,44.10681689,106.85,106.72,134.88768177]
[1644502196311,11.25,106.84,106.72,35.91768177]
[1644502196537,14.0524,106.81,106.72,35.91768177]
[1644502196715,27.82989535,106.8,106.72,35.91768177]
[1644502197212,27.32989535,106.8,106.72,35.91768177]
[1644502197412,46.8414,106.82,106.72,35.91768177]
[1644502198314,23.30884985,106.81,106.72,35.91768177]
[1644502198714,14.0519,106.8,106.72,35.91768177]
[1644502199317,9.6747432,106.79,106.72,35.91768177]
[1644502199518,14.0519,106.8,106.72,35.91768177]
[1644502199721,14.0519,106.8,106.69,14.0501]
[1644502200121,14.0519,106.8,106.68,161.6951]
[1644502200318,14.0519,106.8,106.67,18.735]
[1644502200520,14.0519,106.8,106.67,4.682]
[1644502200720,14.056,106.77,106.68,44.48646021]
[1644502200920,8.97566615,106.76,106.68,44.48646021]
[1644502201520,11.27637785,106.8,106.68,44.48646021]
[1644502201820,46.8533,106.79,106.68,44.48646021]
[1644502202521,32.67436957,106.78,106.68,44.48646021]
[1644502202922,14.0546,106.78,106.68,44.48646021]
[1644502203323,14.0546,106.78,106.69,87.72]
[1644502203724,46.86969587,106.81,106.69,102.0213]
[1644502203923,14.0516,106.8,106.7,36.85267881]
[1644502204129,14.0516,106.8,106.71,87.72]
[1644502204324,14.0516,106.8,106.7,36.85267881]
[1644502204526,14.0516,106.8,106.67,1.99545845]
[1644502204728,6.91522154,106.79,106.64,11.25]
[1644502204926,14.0577,106.76,106.64,14.0577]
[1644502205128,18.16522154,106.79,106.61,12.56916729]
[1644502205129,4.686,106.75,106.61,12.56916729]
[1644502205330,11.25,106.76,106.61,1.31916729]
[1644502205527,11.25,106.76,106.62,43.37294229]
[1644502205528,23.25969536,106.75,106.62,43.37294229]
[1644502206230,14.0616,106.72,106.62,57.43384229]
[1644502206530,23.25969536,106.71,106.62,43.37294229]
[1644502206931,23.25969536,106.71,106.59,1.31916729]
[1644502207134,34.83135604,106.71,106.59,1.31916729]
[1644502207330,6.91922154,106.7,106.56,72.5651]
[1644502207532,11.25,106.69,106.55,22.6765]
[1644502207734,4.689,106.68,106.55,22.6765]
[1644502207936,9.72389769,106.67,106.56,48.46325855]
[1644502208131,11.25,106.68,106.56,48.46325855]
[1644502208733,14.0714,106.66,106.56,48.46325855]
[1644502208932,9.0822801,106.69,106.56,48.46325855]
[1644502209133,25.80670469,106.7,106.57,1.99199536]
[1644502209334,11.25,106.73,106.59,87.72]
[1644502210233,11.25,106.73,106.59,93.97]
[1644502210431,30.95483197,106.72,106.6,37.12502428]
[1644502210832,45.01673197,106.72,106.6,51.43772428]
[1644502211032,45.01673197,106.72,106.6,51.18772428]
[1644502211648,14.0619,106.72,106.6,51.18772428]
[1644502211847,14.0594,106.74,106.64,14.0577]
[1644502212251,14.0594,106.74,106.64,16.29969536]
[1644502212449,0.02639587,106.76,106.64,16.29969536]
[1644502212651,26.01514683,106.77,106.65,48.71547413]
[1644502212852,14.0569,106.76,106.65,63.02177413]
[1644502213051,14.0569,106.76,106.65,65.01376949]
[1644502213256,14.0569,106.76,106.65,71.01376949]
[1644502213853,45.55145251,106.78,106.66,87.72]
[1644502214053,45.55145251,106.78,106.67,37.27646926]
[1644502214453,45.55145251,106.78,106.6,34.6174]
[1644502214454,1.48614054,106.76,106.6,34.6174]
[1644502214654,4.686,106.75,106.6,11.25]
[1644502214854,18.16722154,106.75,106.6,11.25]
[1644502215055,16.29202154,106.74,106.6,25.3132]
[1644502215455,14.0608,106.74,106.61,125.18977821]
[1644502215654,45.55825251,106.74,106.61,37.46977821]
[1644502215857,14.0608,106.74,106.61,37.71977821]
[1644502216458,14.0608,106.74,106.62,14.0602]
[1644502216660,14.0608,106.74,106.62,18.7462]
[1644502216958,14.0608,106.74,106.63,38.93303704]
[1644502217157,14.0608,106.74,106.63,126.65303704]
[1644502217361,14.0608,106.74,106.63,126.90303704]
[1644502217968,14.08289587,106.76,106.64,14.0574]
[1644502218161,46.55269587,106.78,106.64,25.3074]
[1644502218362,4.71039587,106.81,106.65,1.99199536]
[1644502218562,0.02639587,106.79,106.66,11.25]
[1644502218760,2.23122154,106.8,106.65,11.25]
[1644502218960,31.64566135,106.79,106.67,36.2875003]
[1644502219162,14.054,106.78,106.67,36.2875003]
[1644502219560,1.3379317,106.77,106.67,36.2875003]
[1644502219761,14.054,106.78,106.67,36.5375003]
[1644502220261,14.054,106.78,106.68,87.72]
[1644502220660,0.02639587,106.81,106.68,87.97]
[1644502220863,0.02639587,106.82,106.69,41.07203461]
[1644502221065,1.14225802,106.89,106.7,11.25]
[1644502221066,0.02639587,106.85,106.7,11.25]
[1644502221265,0.02639587,106.86,106.71,4.682]
[1644502221466,0.02639587,106.87,106.72,25.2952]
[1644502221663,0.02639587,106.87,106.73,87.72]
[1644502221864,14.0429,106.86,106.74,36.44393008]
[1644502222065,9.19914093,106.85,106.74,36.44393008]
[1644502222266,11.43036247,106.85,106.74,36.69393008]
[1644502222464,11.43036247,106.85,106.74,36.44393008]
[1644502222865,14.0467,106.83,106.74,36.44393008]
[1644502223066,11.43036247,106.85,106.74,36.44393008]
[1644502223265,4.70739587,106.87,106.74,36.44393008]
[1644502223573,2.23122154,106.84,106.74,36.44393008]
[1644502223966,4.682,106.83,106.74,36.44393008]
[1644502224166,23.69438076,106.82,106.71,4.681]
[1644502224367,25.9256023,106.82,106.71,4.681]
[1644502224669,0.3051655,106.79,106.63,11.25]
[1644502224866,15.934,106.78,106.63,11.25]
[1644502225071,14.062,106.74,106.63,11.25]
[1644502225271,14.062,106.74,106.64,34.92651684]
[1644502225468,37.75638076,106.74,106.64,34.92651684]
[1644502226071,14.062,106.74,106.64,34.92651684]
[1644502227470,3.39862769,106.73,106.64,34.92651684]
[1644502227672,14.0639,106.71,106.64,34.92651684]
[1644502228471,14.0639,106.71,106.64,34.42651684]
[1644502229272,14.061,106.73,106.64,34.42651684]
[1644502230075,37.24071094,106.72,106.64,34.42651684]
[1644502230299,32.55471094,106.72,106.64,34.42651684]
[1644502230575,14.0665,106.7,106.57,4.686]
[1644502230778,11.25,106.69,106.55,1.31916729]
[1644502230979,11.25,106.69,106.54,11.25]
[1644502230980,51.5936,106.68,106.53,1.31916729]
[1644502231180,27.52520132,106.68,106.53,1.31916729]
[1644502231378,27.52520132,106.68,106.52,1.31916729]
[1644502231379,37.00720132,106.68,106.52,1.31916729]
[1644502231583,12.20662848,106.67,106.53,38.10442441]
[1644502231781,38.51549789,106.65,106.53,38.10442441]
[1644502231983,54.45549789,106.65,106.53,38.10442441]
[1644502232584,65.73324426,106.65,106.5,1.31916729]
[1644502232785,14.0837,106.58,106.48,1.31916729]
[1644502232987,14.0837,106.58,106.47,1.31916729]
[1644502233185,14.0837,106.58,106.45,1.31916729]
[1644502233384,25.3337,106.58,106.44,6.01116729]
[1644502233584,34.37319516,106.58,106.45,37.0618127]
[1644502233786,25.3337,106.58,106.45,37.0618127]
[1644502234385,25.3337,106.58,106.45,43.0618127]
[1644502234585,25.3337,106.58,106.45,38.38097999]
[1644502234785,25.90495745,106.57,106.45,37.0618127]
[1644502234989,11.25,106.56,106.44,1.31916729]
[1644502235187,14.0884,106.54,106.42,1.31916729]
[1644502235387,0.30411434,106.52,106.39,1.31916729]
[1644502235686,0.30411434,106.52,106.35,1.31916729]
[1644502235687,15.946,106.51,106.35,1.31916729]
[1644502235890,18.17722154,106.51,106.35,1.31916729]
[1644502236089,9.80985714,106.5,106.35,35.33764664]
[1644502236289,11.25,106.49,106.35,35.33764664]
[1644502236488,25.3463,106.49,106.35,35.33764664]
[1644502236889,25.3463,106.49,106.35,36.65681393]
[1644502237088,25.3463,106.49,106.35,35.33764664]
[1644502237388,4.698,106.48,106.35,35.33764664]
[1644502237688,0.31381351,106.52,106.35,36.65681393]
[1644502237689,4.698,106.5,106.35,36.65681393]
[1644502237911,24.4354,106.56,106.37,1.31916729]
[1644502238110,24.4354,106.56,106.39,87.72]
[1644502238305,24.4354,106.56,106.4,11.25]
[1644502238512,32.92166946,106.55,106.4,57.0077006]
[1644502238808,44.17166946,106.55,106.4,63.2577006]
[1644502239005,0.56192359,106.53,106.4,57.2577006]
[1644502239205,0.56192359,106.53,106.4,45.7577006]
[1644502239405,18.17722154,106.52,106.4,45.7577006]
[1644502239610,11.56115056,106.52,106.4,45.7577006]
[1644502240005,2.23122154,106.51,106.4,45.7577006]
[1644502240207,11.25,106.54,106.4,45.7577006]
[1644502240412,28.97941253,106.53,106.4,45.7577006]
[1644502240806,31.21063407,106.53,106.4,45.7577006]
[1644502241018,42.46063407,106.53,106.4,45.7577006]
[1644502241212,56.55103407,106.53,106.4,45.7577006]
[1644502241808,4.696,106.52,106.4,45.7577006]
[1644502242010,54.31981253,106.53,106.4,45.7577006]
[1644502242207,28.97941253,106.53,106.4,46.0077006]
[1644502242809,43.06961253,106.53,106.4,46.0077006]
[1644502243009,54.31961253,106.53,106.4,45.7577006]
[1644502243210,22.78189905,106.52,106.4,45.7577006]
[1644502243418,4.50418052,106.51,106.4,45.7577006]
[1644502245011,32.07800206,106.51,106.37,4.696]
[1644502245210,4.697,106.5,106.33,25.3444]
[1644502245411,11.25,106.49,106.33,15.948]
[1644502245611,13.48122154,106.49,106.34,4.698]
[1644502245813,18.17922154,106.49,106.33,11.25]
[1644502246011,28.97941253,106.48,106.34,50.6178554]
[1644502246810,14.098,106.47,106.34,50.6178554]
[1644502247012,4.50418052,106.46,106.34,45.9198554]
[1644502247212,0.32141939,106.44,106.34,45.9198554]
[1644502247410,40.55083192,106.44,106.34,45.9198554]
[1644502247612,40.22941253,106.44,106.34,45.9198554]
[1644502247911,14.1052,106.43,106.34,45.9198554]
[1644502248413,4.50418052,106.42,106.34,45.9198554]
[1644502248612,4.50418052,106.42,106.3,200.8498]
[1644502249915,4.50418052,106.42,106.31,47.94341909]
[1644502250312,18.60938052,106.42,106.31,47.94341909]
[1644502250512,29.85938052,106.42,106.31,47.94341909]
[1644502250712,28.97941253,106.4,106.31,47.94341909]
[1644502251212,20.77608758,106.42,106.31,47.94341909]
[1644502251413,14.1069,106.4,106.31,47.94341909]
[1644502251816,122.4,106.46,106.31,48.19341909]
[1644502252014,70.6901,106.46,106.32,92.419]
[1644502252214,28.38855706,106.45,106.33,45.89751415]
[1644502252615,2.23122154,106.46,106.33,46.14751415]
[1644502252817,46.9871,106.51,106.34,11.25]
[1644502253017,4.698,106.56,106.35,92.418]
[1644502253213,4.698,106.56,106.36,88.3715]
[1644502253214,13.48122154,106.55,106.36,88.3715]
[1644502253414,4.696,106.54,106.37,4.696]
[1644502253614,29.68460421,106.53,106.38,39.64846606]
[1644502253815,14.0933,106.5,106.38,39.64846606]
[1644502254019,3.79898884,106.49,106.38,39.64846606]
[1644502254216,14.0933,106.5,106.38,39.89846606]
[1644502254422,11.25,106.54,106.38,127.61846606]
[1644502254616,13.48122154,106.54,106.38,127.61846606]
[1644502255019,4.696,106.53,106.38,127.61846606]
[1644502255218,25.60773007,106.52,106.38,127.61846606]
[1644502255419,25.60773007,106.52,106.4,125.23366003]
[1644502255819,11.25,106.54,106.4,125.48366003]
[1644502256820,33.15151846,106.53,106.42,36.24593145]
[1644502257121,51.93691846,106.53,106.42,36.24593145]
[1644502257319,54.16814,106.53,106.42,36.24593145]
[1644502258119,51.93691846,106.53,106.42,36.24593145]
[1644502258320,18.7854,106.53,106.42,36.24593145]
[1644502258521,14.0894,106.53,106.42,36.24593145]
[1644502259320,14.0913,106.51,106.42,36.24593145]
[1644502259523,7.04521093,106.5,106.42,36.24593145]
[1644502259920,14.0913,106.51,106.42,36.24593145]
[1644502260920,32.88720049,106.5,106.42,36.24593145]
[1644502261321,46.98060049,106.5,106.38,4.696]
[1644502261623,2.23122154,106.49,106.36,128.01316729]
[1644502261822,2.23122154,106.52,106.37,87.72]
[1644502262023,8.68527647,106.53,106.39,1.31916729]
[1644502262220,14.0885,106.53,106.4,18.7853]
[1644502262423,8.68527647,106.56,106.4,31.35446729]
[1644502262620,22.8631,106.57,106.41,91.00956909]
[1644502262821,11.25,106.62,106.43,1.31916729]
[1644502263023,11.25,106.62,106.44,17.26116729]
[1644502263221,14.0752,106.63,106.46,1.31916729]
[1644502263421,14.0752,106.63,106.47,17.26116729]
[1644502263623,14.0752,106.63,106.48,12.56916729]
[1644502263921,14.0752,106.63,106.49,39.10791296]
[1644502264122,2.01765309,106.62,106.49,52.32831476]
[1644502264325,14.0752,106.63,106.49,52.32831476]
[1644502264326,14.0752,106.63,106.49,64.68541296]
[1644502264927,16.30642154,106.63,106.49,152.40541296]
[1644502265123,14.0752,106.63,106.49,64.68541296]
[1644502265323,14.0752,106.63,106.49,50.60791296]
[1644502265324,28.65193384,106.62,106.49,50.60791296]
[1644502265526,14.0799,106.59,106.49,39.10791296]
[1644502265724,7.06288075,106.58,106.49,39.10791296]
[1644502265923,16.31112154,106.59,106.49,39.10791296]
[1644502266125,16.31112154,106.59,106.49,127.07791296]
[1644502266325,2.23122154,106.61,106.49,147.15511296]
[1644502266526,14.0752,106.63,106.5,11.25]
[1644502266726,14.0752,106.63,106.5,17.25]
[1644502266927,4.691,106.65,106.51,47.6250427]
[1644502267127,37.81653645,106.66,106.52,4.691]
[1644502267327,29.13125998,106.66,106.53,44.75964216]
[1644502267529,29.13125998,106.66,106.54,14.0711]
[1644502267726,2.23122154,106.65,106.55,45.33657128]
[1644502268129,14.07,106.67,106.55,45.58657128]
[1644502268530,4.689,106.66,106.55,45.33657128]
[1644502268736,30.23539693,106.65,106.55,45.33657128]
[1644502268928,30.23539693,106.65,106.5,52.9067]
[1644502268929,46.53911847,106.65,106.5,52.9067]
[1644502269130,6.92222154,106.64,106.51,11.25]
[1644502269331,2.23122154,106.64,106.51,11.25]
[1644502269531,2.23122154,106.63,106.48,15.939]
[1644502269730,2.23122154,106.63,106.49,14.0776]
[1644502269932,3.24819612,106.62,106.5,46.08642025]
[1644502270334,2.23122154,106.61,106.5,46.08642025]
[1644502270533,34.92739693,106.6,106.48,4.689]
[1644502270731,55.71489562,106.6,106.48,4.689]
[1644502270937,2.23122154,106.59,106.48,4.689]
[1644502271134,15.942,106.58,106.4,12.56916729]
[1644502271334,25.47949869,106.58,106.4,18.56916729]
[1644502271564,15.01691635,106.57,106.41,35.21140596]
[1644502271733,14.0873,106.54,106.43,14.0853]
[1644502271936,44.32269693,106.54,106.44,35.9660865]
[1644502272134,14.0873,106.54,106.44,35.9660865]
[1644502272343,11.25,106.58,106.44,35.9660865]
[1644502272540,11.25,106.59,106.45,4.694]
[1644502272742,36.7049,106.6,106.48,14.0794]
[1644502273135,36.7049,106.6,106.49,50.04145528]
[1644502273335,22.6266,106.6,106.49,54.98345528]
[1644502273538,11.25,106.65,106.5,1.9704018]
[1644502273734,11.25,106.65,106.5,2.2204018]
[1644502274134,14.0763,106.62,106.51,14.0753]
[1644502274335,77.44825502,106.66,106.52,39.25113462]
[1644502274535,52.477,106.66,106.52,39.25113462]
[1644502274735,4.691,106.66,106.53,1.97047575]
[1644502274935,11.25,106.7,106.54,4.69]
[1644502275236,11.25,106.7,106.57,14.0676]
[1644502275438,22.69,106.71,106.58,4.688]
[1644502275636,22.69,106.71,106.58,54.31400651]
[1644502275837,22.69,106.71,106.58,54.56400651]
[1644502276339,14.0604,106.74,106.61,14.0624]
[1644502276937,4.687,106.73,106.61,14.0624]
[1644502277137,4.686,106.74,106.58,47.90553076]
[1644502277337,28.39479824,106.73,106.61,36.35932898]
[1644502277539,4.687,106.72,106.61,36.35932898]
[1644502277736,7.32001635,106.71,106.61,36.35932898]
[1644502277940,14.0687,106.68,106.61,36.35932898]
[1644502278139,39.10050971,106.68,106.61,36.35932898]
[1644502278738,41.33173125,106.68,106.61,36.35932898]
[1644502278939,39.10050971,106.68,106.57,14.067]
[1644502279146,39.10050971,106.68,106.55,14.0695]
[1644502279538,41.33173125,106.68,106.55,14.0695]
[1644502279738,4.689,106.67,106.55,14.0695]
[1644502279940,14.0706,106.66,106.56,37.38343867]
[1644502280139,46.9037,106.69,106.56,37.38343867]
[1644502280342,13.48122154,106.72,106.56,51.45213867]
[1644502280542,11.25,106.72,106.56,51.45213867]
[1644502280739,11.25,106.72,106.56,51.70213867]
[1644502280945,36.61970604,106.72,106.58,36.32116541]
[1644502281140,11.25,106.72,106.58,36.32116541]
[1644502281340,75.131,106.74,106.6,14.0633]
[1644502281741,75.131,106.74,106.6,14.3133]
[1644502282144,4.688,106.74,106.61,47.87869746]
[1644502282343,42.89828164,106.76,106.64,14.0575]
[1644502282542,0.02639587,106.75,106.65,46.75771096]
[1644502282741,42.87188577,106.76,106.65,46.75771096]
[1644502282941,28.81438577,106.76,106.65,46.75771096]
[1644502283143,4.66920728,106.74,106.65,46.75771096]
[1644502283341,14.0614,106.73,106.65,46.75771096]
[1644502284144,11.27639587,106.76,106.65,46.75771096]
[1644502284344,11.25,106.76,106.65,46.75771096]
[1644502284943,43.07509761,106.76,106.65,46.75771096]
[1644502285544,11.25,106.76,106.65,46.75771096]
[1644502285747,14.0563,106.77,106.66,87.72]
[1644502285947,22.7148,106.79,106.66,87.72]
[1644502285948,0.02639587,106.79,106.66,87.72]
[1644502286149,0.02639587,106.79,106.67,1.96215299]
[1644502286448,0.02639587,106.82,106.67,13.46215299]
[1644502286653,36.13420072,106.83,106.68,44.45650991]
[1644502286846,2.23122154,106.81,106.69,14.0519]
[1644502287048,2.0597882,106.8,106.7,37.33363778]
[1644502287447,4.29100974,106.8,106.7,37.33363778]
[1644502287853,2.0597882,106.8,106.7,37.33363778]
[1644502288149,14.052,106.8,106.7,37.33363778]
[1644502288946,39.10707229,106.8,106.68,14.0522]
[1644502289147,52.58829383,106.8,106.65,14.0562]
[1644502289348,4.684,106.79,106.65,14.0562]
[1644502289554,14.0571,106.77,106.65,14.0562]
[1644502289751,14.0571,106.77,106.62,128.6507]
[1644502289951,14.0571,106.77,106.62,81.798]
[1644502289952,2.23122154,106.76,106.62,81.798]
[1644502290152,10.6597423,106.76,106.63,44.78262823]
[1644502290353,4.686,106.75,106.63,44.78262823]
[1644502290554,25.05507229,106.74,106.63,44.78262823]
[1644502291354,6.91722154,106.76,106.63,50.78262823]
[1644502291554,16.28922154,106.76,106.63,64.84122823]
[1644502291754,14.058,106.76,106.63,50.78262823]
[1644502291954,16.28922154,106.76,106.63,44.78262823]
[1644502292154,27.53922154,106.76,106.63,44.78262823]
[1644502292356,31.47473116,106.75,106.63,44.78262823]
[1644502292556,14.061,106.74,106.63,44.78262823]
[1644502292758,46.89529587,106.77,106.63,49.46862823]
[1644502292958,4.686,106.79,106.64,11.25]
[1644502292959,0.02639587,106.79,106.64,11.25]
[1644502293157,87.3292,106.82,106.65,4.684]
[1644502293158,0.02639587,106.78,106.65,4.684]
[1644502293357,0.02639587,106.79,106.66,11.25]
[1644502293561,0.02639587,106.81,106.67,92.404]
[1644502293759,0.02639587,106.85,106.68,58.0735]
[1644502293959,0.02639587,106.83,106.69,4.683]
[1644502294178,0.02639587,106.84,106.7,11.25]
[1644502294379,0.02639587,106.85,106.7,107.44096923]
[1644502294580,0.02639587,106.89,106.71,1.95747663]
[1644502294781,0.02639587,106.89,106.72,46.50012573]
[1644502294980,1.10739235,106.88,106.77,42.18467109]
[1644502295781,31.89400149,106.86,106.77,42.18467109]
[1644502295981,0.02639587,106.89,106.77,42.18467109]
[1644502296185,11.25,106.9,106.77,42.18467109]
[1644502296382,4.68,106.89,106.77,42.18467109]
[1644502296582,11.25,106.9,106.77,42.18467109]
[1644502296782,0.02639587,106.91,106.77,42.18467109]
[1644502296783,14.0445,106.86,106.77,42.18467109]
[1644502298084,14.0469,106.84,106.72,11.25]
[1644502298285,15.932,106.83,106.67,97.2366]
[1644502298484,11.27639587,106.83,106.67,97.2366]
[1644502298688,21.60892649,106.83,106.67,97.2366]
[1644502298988,5.54934714,106.83,106.68,45.8019797]
[1644502299187,19.59734714,106.83,106.7,14.0486]
[1644502299386,14.048,106.83,106.71,41.89948422]
[1644502299589,4.70939587,106.85,106.71,41.89948422]
[1644502299786,0.02639587,106.85,106.72,4.682]
[1644502299991,58.09179587,106.88,106.72,15.932]
[1644502300187,58.09179587,106.88,106.72,22.182]
[1644502300387,14.0432,106.87,106.74,14.0432]
[1644502300590,0.02639587,106.88,106.75,125.34078662]
[1644502300790,23.963,106.89,106.75,125.59078662]
[1644502300989,23.98939587,106.89,106.76,4.68]